bitfinex-derivatives/quotes_SOLF0:USTF0_20260226
["timestamp","ask_amount","ask_price","bid_price","bid_amount"]
[1772139300613,2.77224305,86.0,85.944,6.94731781]
[1772139300813,2.77224305,85.99,85.944,6.94731781]
[1772139301114,2.77224305,85.99,85.945,6.94731781]
[1772139303015,2.77224305,85.99,85.947,6.95946506]
[1772139303211,2.77224305,86.0,85.951,6.95940451]
[1772139303415,371.47022491,86.007,85.96,2.77224305]
[1772139303607,34.98088365,86.02,85.96,2.77224305]
[1772139303810,2.77224305,86.01,85.953,10.4704]
[1772139304116,34.98088365,86.01,85.953,10.4704]
[1772139304417,34.98088365,86.01,85.962,10.4693]
[1772139304713,2.77224305,86.01,85.962,10.4693]
[1772139305516,34.94850647,85.99,85.93,2.77224305]
[1772139306515,34.94850647,85.99,85.934,10.4727]
[1772139307416,2.77224305,85.98,85.934,10.4727]
[1772139309318,2.77224305,85.97,85.934,10.4727]
[1772139311223,32.25446668,85.98,85.942,10.4718]
[1772139311420,35.02670973,85.98,85.942,10.4718]
[1772139313223,35.02670973,85.98,85.92,2.77224305]
[1772139314825,34.94548968,85.96,85.931,10.473]
[1772139316128,2.77224305,85.95,85.921,10.4743]
[1772139316328,32.17324663,85.96,85.921,10.4743]
[1772139316329,34.94548968,85.96,85.921,10.4743]
[1772139317325,34.94548968,85.96,85.9,2.77224305]
[1772139317530,34.94548968,85.96,85.929,10.4734]
[1772139318526,34.94548968,85.96,85.921,10.4743]
[1772139318731,34.9641092,85.95,85.921,10.4743]
[1772139321837,2.77224305,85.94,85.913,10.4753]
[1772139322038,34.9641092,85.95,85.913,10.4753]
[1772139324436,34.9641092,85.95,85.92,10.4744]
[1772139325540,457.78659789,86.007,85.91,2.77224305]
[1772139325838,2.77224305,85.97,85.92,2.77224305]
[1772139326339,2.77224305,85.97,85.942,10.4718]
[1772139328743,2.77224305,86.0,85.94,2.77224305]
[1772139328942,2.77224305,86.0,85.95,2.77224305]
[1772139330145,2.77224305,86.01,85.96,2.77224305]
[1772139330332,2.77224305,86.02,85.96,2.77224305]
[1772139330842,12.93844611,86.019,85.98,10.4671]
[1772139331042,288.91057234,86.026,85.922,20.9483]
[1772139331043,15.70956864,86.0,85.94,2.77224305]
[1772139331342,15.70956864,86.0,85.972,10.4681]
[1772139332543,15.70956864,86.0,85.962,10.4693]
[1772139333243,15.70664023,86.0,85.962,10.4693]
[1772139335748,12.94383551,85.998,85.943,10.4716]
[1772139335948,12.94383551,85.989,85.943,10.4716]
[1772139336250,12.94383551,85.989,85.94,2.76931464]
[1772139336438,12.94383551,85.989,85.951,10.4707]
[1772139337949,2.76931464,85.98,85.942,10.4718]
[1772139338249,12.94383551,85.989,85.93,2.76931464]
[1772139338740,2.76931464,86.0,85.95,2.76931464]
[1772139339247,15.70564443,86.0,85.967,10.4687]
[1772139339449,12.93632979,86.0,85.967,10.4687]
[1772139341346,12.93007861,85.989,85.94,2.76931464]
[1772139341550,11.54542129,85.969,85.91,2.76931464]
[1772139342950,11.54542129,85.969,85.93,10.4732]
[1772139346151,11.54542129,85.969,85.921,10.4743]
[1772139346753,11.54542129,85.969,85.929,10.4733]
[1772139348351,2.76931464,85.99,85.93,2.76931464]
[1772139349654,2.76931464,85.99,85.948,10.4711]
[1772139349855,10.4646,86.001,85.948,10.4711]
[1772139349856,2.76931464,85.98,85.948,10.4711]
[1772139351251,1.464e-05,85.98,85.958,10.4698]
[1772139351454,5.71672617,85.987,85.958,10.4698]
[1772139351853,2.76931464,86.01,85.951,4.46354701]
[1772139352955,2.76931464,86.0,85.965,10.4689]
[1772139353957,4.76940935,85.999,85.965,10.4689]
[1772139356358,4.76940935,85.999,85.953,10.4704]
[1772139358857,4.76940935,85.999,85.953,15.2770253]
[1772139360661,4.76940935,85.999,85.954,4.8066253]
[1772139361259,4.76940935,85.999,85.956,10.4701]
[1772139361463,4.76940935,85.999,85.956,15.2767253]
[1772139364164,4.76940935,85.999,85.957,4.8066253]
[1772139365366,4.76940935,85.999,85.96,4.8066253]
[1772139366762,2.76931464,86.02,85.97,2.76931464]
[1772139366964,7.53872399,86.02,85.971,4.8066253]
[1772139367867,7.53872399,86.02,85.978,10.4674]
[1772139368067,7.53872399,86.02,85.978,15.2740253]
[1772139368465,4.76940935,86.02,85.979,4.8066253]
[1772139368662,4.76940935,86.03,85.981,4.8066253]
[1772139368970,4.76940935,86.019,85.975,4.8066253]
[1772139369369,4.76940935,86.009,85.964,4.8066253]
[1772139369668,4.76940935,85.999,85.953,4.8066253]
[1772139370068,4.76940935,85.999,85.956,10.47]
[1772139371974,4.76940935,85.999,85.956,15.65479021]
[1772139375372,2.76931464,85.99,85.944,5.18479021]
[1772139375572,5.48623202,85.989,85.944,5.18479021]
[1772139375774,2.76931464,85.98,85.944,5.18479021]
[1772139375973,8.25554666,85.98,85.944,5.18479021]
[1772139376173,5.48623202,85.979,85.944,5.18479021]
[1772139377977,5.48623202,85.979,85.939,10.4722]
[1772139380583,5.48623202,85.979,85.939,15.65699021]
[1772139381382,5.48623202,85.979,85.94,5.18479021]
[1772139381982,5.48623202,85.979,85.941,10.4718]
[1772139382879,5.48623202,85.979,85.941,15.65659021]
[1772139387284,5.48623202,85.979,85.948,10.471]
[1772139387985,5.48623202,85.989,85.955,10.4701]
[1772139390691,5.48623202,85.989,85.95,5.18479021]
[1772139396593,10.4662,85.988,85.95,5.18479021]
[1772139396795,2.7700842,85.98,85.933,5.93689593]
[1772139396984,5.97803613,85.979,85.933,5.93689593]
[1772139397488,8.74812033,85.97,85.933,5.93689593]
[1772139398596,5.97803613,85.97,85.933,5.93689593]
[1772139403202,5.79274848,85.969,85.922,6.06645076]
[1772139403697,5.79274848,85.959,85.922,6.06645076]
[1772139404001,5.79274848,85.959,85.901,6.06645076]
[1772139404903,5.79274848,85.959,85.907,10.476]
[1772139405097,5.79274848,85.959,85.908,6.06645076]
[1772139407106,5.79274848,85.959,85.912,10.4754]
[1772139407906,5.79274848,85.959,85.912,16.54185076]
[1772139408108,5.79274848,85.959,85.919,6.06645076]
[1772139408903,5.79274848,85.959,85.922,10.4742]
[1772139411412,5.79274848,85.959,85.919,6.06645076]
[1772139411711,20.9264,86.013,85.914,10.4752]
[1772139411712,5.79274848,85.949,85.914,10.4752]
[1772139411912,5.79274848,85.949,85.907,6.06645076]
[1772139413615,5.79274848,85.949,85.908,10.4759]
[1772139414522,5.79274848,85.949,85.909,6.06645076]
[1772139415221,5.79274848,85.949,85.911,6.06645076]
[1772139421126,10.4687,85.968,85.912,6.06645076]
[1772139421327,10.4687,85.968,85.921,6.06645076]
[1772139421821,5.79274848,85.968,85.925,6.06645076]
[1772139422026,5.79274848,85.979,85.931,6.06645076]
[1772139422929,5.79274848,85.979,85.934,6.06645076]
[1772139423924,5.79274848,85.979,85.937,6.06645076]
[1772139425028,5.79274848,85.979,85.939,6.06645076]
[1772139427834,5.79274848,85.969,85.911,6.06645076]
[1772139428934,5.79274848,85.969,85.922,6.06645076]
[1772139429833,10.4687,85.968,85.922,6.06645076]
[1772139430034,6.0283122,85.967,85.922,6.06645076]
[1772139431436,6.0283122,85.967,85.926,6.12145435]
[1772139432537,6.0283122,85.967,85.928,6.12145435]
[1772139433437,6.0283122,85.967,85.937,10.4724]
[1772139433937,6.0283122,85.967,85.937,16.59385435]
[1772139436140,6.0283122,85.967,85.944,10.4715]
[1772139436345,6.0283122,85.979,85.931,6.12145435]
[1772139436840,6.0283122,85.979,85.941,10.4719]
[1772139438542,6.0283122,85.979,85.933,16.59435435]
[1772139438838,6.0283122,85.979,85.934,6.12145435]
[1772139439943,6.0283122,85.977,85.934,6.12145435]
[1772139440443,6.0283122,85.975,85.934,6.12145435]
[1772139441739,6.0283122,85.975,85.935,10.4726]
[1772139441945,6.0283122,85.975,85.936,6.12145435]
[1772139443945,6.0283122,85.973,85.936,6.12145435]
[1772139445947,6.0283122,85.971,85.926,6.12145435]
[1772139446147,6.0283122,85.969,85.926,6.12145435]
[1772139447147,6.0283122,85.966,85.926,6.12145435]
[1772139449752,16.4973122,85.965,85.926,6.12145435]
[1772139450057,6.0283122,85.964,85.926,6.12145435]
[1772139452252,6.0283122,85.964,85.928,10.4735]
[1772139452446,6.0283122,85.964,85.929,6.12145435]
[1772139452747,6.0283122,85.974,85.929,6.12145435]
[1772139453952,6.0283122,85.974,85.937,6.12145435]
[1772139455049,6.0283122,85.974,85.939,10.4721]
[1772139461357,6.0283122,85.974,85.939,17.1706006]
[1772139465863,6.0283122,85.974,85.94,6.6985006]
[1772139466260,6.63879125,85.993,85.944,10.4715]
[1772139466459,6.63879125,85.993,85.95,2.77113464]
[1772139466758,6.63879125,85.993,85.951,6.6985006]
[1772139467965,6.63879125,85.993,85.953,6.6985006]
[1772139471662,6.63879125,85.993,85.952,10.4706]
[1772139471867,6.63879125,85.993,85.892,190.43822602]
[1772139471868,2.77113464,85.98,85.942,6.6985006]
[1772139472068,6.63879125,85.979,85.92,2.77113464]
[1772139472972,6.63879125,85.977,85.928,10.4734]
[1772139473968,6.63879125,85.975,85.929,1.15848802]
[1772139474169,2.77113464,86.0,85.941,0.71943274]
[1772139474467,6.63879125,86.004,85.941,0.71943274]
[1772139475370,2.77113464,86.0,85.941,0.71943274]
[1772139475570,6.63879125,85.999,85.941,0.71943274]
[1772139475869,6.63879125,85.992,85.942,0.73632749]
[1772139477973,6.63879125,85.992,85.944,0.75692316]
[1772139479369,6.63879125,85.992,85.948,0.78976949]
[1772139479573,6.63879125,86.001,85.951,0.78976949]
[1772139480373,6.63879125,85.999,85.951,0.78976949]
[1772139481273,6.63879125,85.999,85.954,0.79253698]
[1772139482371,6.63879125,85.999,85.963,0.81508361]
[1772139482574,2.77113464,86.03,85.981,6.6985006]
[1772139483179,162.5663,86.117,85.981,6.6985006]
[1772139483180,2.77113464,86.04,85.981,6.6985006]
[1772139483375,2.77113464,86.17,86.05,6.6985006]
[1772139483577,2.77113464,86.18,86.12,2.77113464]
[1772139483777,2.77113464,86.15,86.039,5.23298772]
[1772139483979,2.77113464,86.1,86.051,6.6985006]
[1772139484282,2.77113464,86.09,86.051,6.6985006]
[1772139484482,6.63879125,86.098,86.051,6.6985006]
[1772139484778,2.77113464,86.13,86.07,2.77113464]
[1772139484974,2.77113464,86.11,86.064,6.6985006]
[1772139485579,2.77113464,86.12,86.064,6.6985006]
[1772139486178,162.3731,86.219,86.071,6.6985006]
[1772139486379,2.77113464,86.13,86.08,2.77113464]
[1772139486581,6.63879125,86.139,86.08,2.77113464]
[1772139487087,6.63879125,86.119,86.06,2.77113464]
[1772139487980,6.63879125,86.119,86.062,10.4572]
[1772139489383,6.63879125,86.119,86.06,2.77113464]
[1772139489384,2.77113464,86.16,86.1,2.77113464]
[1772139489783,2.77113464,86.16,86.11,2.77113464]
[1772139489984,2.77113464,86.16,86.1,2.77113464]
[1772139490186,2.77113464,86.16,86.101,10.4525]
[1772139490481,2.77113464,86.16,86.1,2.77113464]
[1772139491387,5.62932402,86.159,86.1,2.77113464]
[1772139492283,5.50884301,86.199,86.15,2.77113464]
[1772139493386,5.44713333,86.195,86.131,6.82743294]
[1772139494188,5.31988731,86.193,86.131,6.82743294]
[1772139495187,5.25357228,86.189,86.113,6.82743294]
[1772139495385,5.2599102,86.236,86.171,6.82743294]
[1772139495590,5.2599102,86.232,86.154,6.82743294]
[1772139495787,5.2599102,86.229,86.154,6.82743294]
[1772139496990,5.05041669,86.221,86.154,6.82743294]
[1772139497990,4.99253239,86.217,86.154,6.82743294]
[1772139499491,4.99253239,86.217,86.138,6.82743294]
[1772139500893,10.44,86.204,86.138,6.82743294]
[1772139501094,4.75066554,86.203,86.138,6.82743294]
[1772139501693,10.4405,86.201,86.138,6.82743294]
[1772139501987,4.75731755,86.2,86.122,6.82743294]
[1772139502395,4.71747248,86.171,86.106,6.82743294]
[1772139502687,4.71747248,86.171,86.107,10.4517]
[1772139502886,4.71747248,86.171,86.108,6.82743294]
[1772139503294,10.4428,86.181,86.123,6.82743294]
[1772139503694,4.66344354,86.189,86.123,6.82743294]
[1772139504894,4.66344354,86.189,86.125,10.4495]
[1772139505192,4.66344354,86.189,86.126,6.82743294]
[1772139505895,4.66344354,86.189,86.128,6.82743294]
[1772139507995,10.4436,86.175,86.128,6.82743294]
[1772139508597,4.41576313,86.184,86.128,6.82743294]
[1772139509099,4.36529345,86.18,86.128,6.82743294]
[1772139509397,4.36529345,86.18,86.111,6.82743294]
[1772139510502,4.30869995,86.176,86.114,6.82743294]
[1772139511902,4.30869995,86.176,86.12,6.82743294]
[1772139512901,10.4421,86.187,86.122,6.82743294]
[1772139513504,10.4421,86.187,86.127,6.82743294]
[1772139514102,10.4421,86.187,86.131,6.82743294]
[1772139514902,10.4421,86.187,86.133,6.82743294]
[1772139515804,10.4421,86.187,86.136,6.82743294]
[1772139516407,4.19400651,86.191,86.137,10.4481]
[1772139516702,4.19400651,86.191,86.138,5.6645316]
[1772139517100,4.19400651,86.191,86.141,5.6645316]
[1772139517304,4.19400651,86.191,86.15,2.75669905]
[1772139519000,3.85711548,86.205,86.16,2.75669905]
[1772139519203,10.4389,86.214,86.17,2.75669905]
[1772139519502,10.4389,86.214,86.162,5.87073339]
[1772139519705,3.81783417,86.199,86.15,2.75669905]
[1772139520901,10.4408,86.198,86.15,2.75669905]
[1772139524408,14.07102271,86.198,86.15,2.75669905]
[1772139524803,14.07102271,86.198,86.16,2.75669905]
[1772139525106,3.63022271,86.197,86.16,2.75669905]
[1772139526912,3.63022271,86.197,86.15,19.07393244]
[1772139527310,14.03547015,86.196,86.15,19.07393244]
[1772139527514,3.59447015,86.195,86.15,19.07393244]
[1772139528812,3.59447015,86.195,86.151,5.87073339]
[1772139529013,10.4415,86.192,86.151,5.87073339]
[1772139530709,3.48817903,86.181,86.131,5.87073339]
[1772139531420,10.4429,86.18,86.131,5.87073339]
[1772139532025,13.89232505,86.18,86.132,5.87073339]
[1772139533924,13.89232505,86.18,86.134,16.31913339]
[1772139534123,13.89232505,86.18,86.135,5.87073339]
[1772139534422,10.442,86.188,86.143,5.87073339]
[1772139535323,10.441,86.196,86.146,5.87073339]
[1772139535926,13.89158578,86.204,86.151,5.87073339]
[1772139536425,10.4408,86.198,86.151,5.87073339]
[1772139536928,3.40607295,86.199,86.151,5.87073339]
[1772139538529,10.4394,86.209,86.161,5.87073339]
[1772139539122,13.80330949,86.209,86.161,5.87073339]
[1772139539323,3.36390949,86.209,86.163,5.87073339]
[1772139540420,3.36390949,86.209,86.151,5.87073339]
[1772139541035,3.25479818,86.223,86.17,2.75669905]
[1772139541328,2.75669905,86.23,86.171,5.87073339]
[1772139541528,3.25775629,86.229,86.181,5.87073339]
[1772139542130,3.25775629,86.229,86.133,20.897]
[1772139542131,3.099034,86.213,86.167,5.87073339]
[1772139542330,3.099034,86.209,86.167,5.87073339]
[1772139542533,3.099034,86.223,86.171,5.87073339]
[1772139543234,3.06513649,86.236,86.181,5.87073339]
[1772139543430,3.06513649,86.248,86.201,5.87073339]
[1772139544133,10.4349,86.247,86.201,5.87073339]
[1772139544828,2.75669905,86.21,86.078,162.6368]
[1772139545024,2.75669905,86.19,86.151,5.87073339]
[1772139545225,10.4419,86.189,86.151,5.87073339]
[1772139546136,3.34554251,86.159,86.109,5.87073339]
[1772139546630,10.4467,86.149,86.109,5.87073339]
[1772139547032,3.34554251,86.159,86.111,5.87073339]
[1772139547635,3.34554251,86.159,86.113,10.451]
[1772139547835,3.34554251,86.159,86.114,5.87073339]
[1772139548234,3.34554251,86.159,86.091,5.87073339]
[1772139548535,3.28575816,86.129,86.041,5.87073339]
[1772139549234,3.2529,86.117,86.041,5.87073339]
[1772139549438,162.4211,86.194,86.061,5.87073339]
[1772139549439,3.2529,86.149,86.061,5.87073339]
[1772139549639,3.23015988,86.134,86.074,5.20146111]
[1772139550440,3.23422978,86.126,85.97,20.9368]
[1772139550739,4.93466803,86.119,86.02,7.38956846]
[1772139551039,4.93466803,86.115,86.045,10.4592]
[1772139551738,4.93466803,86.113,86.045,10.4592]
[1772139552435,4.93466803,86.113,86.02,7.38956846]
[1772139552737,4.93466803,86.113,86.021,5.20146111]
[1772139553038,4.93466803,86.1,86.031,15.66236111]
[1772139553239,4.93466803,86.099,85.996,5.20146111]
[1772139553437,4.93466803,86.079,85.996,5.20146111]
[1772139554038,4.93466803,86.071,85.998,5.20146111]
[1772139554940,4.93466803,86.079,85.998,5.20146111]
[1772139555342,4.93466803,86.096,86.028,5.20146111]
[1772139555840,4.93466803,86.082,86.007,5.20146111]
[1772139556241,4.93466803,86.069,85.963,5.20146111]
[1772139556435,4.93466803,86.065,85.983,5.20146111]
[1772139556643,4.93466803,86.049,85.983,5.20146111]
[1772139557547,4.93466803,86.049,85.962,232.02]
[1772139557548,4.93466803,86.029,85.964,5.20146111]
[1772139558240,10.4608,86.033,85.964,5.20146111]
[1772139558548,4.93466803,86.045,85.967,5.20146111]
[1772139559246,10.4598,86.042,85.967,15.67016111]
[1772139559448,4.93466803,86.069,85.968,5.20146111]
[1772139560249,4.93466803,86.069,85.962,232.02]
[1772139560250,4.93466803,86.077,86.0,5.20146111]
[1772139560446,4.93466803,86.049,85.981,5.20146111]
[1772139561050,4.93466803,86.028,85.963,5.20146111]
[1772139561645,4.93466803,86.028,85.964,5.20146111]
[1772139562251,4.93466803,86.048,85.966,5.20146111]
[1772139562652,4.93466803,86.039,85.966,5.20146111]
[1772139563254,15.39516803,86.035,85.968,5.20146111]
[1772139563953,4.93466803,86.034,85.968,5.20146111]
[1772139564255,4.93466803,86.047,85.968,5.20146111]
[1772139565052,10.4598,86.041,85.98,5.20146111]
[1772139565354,4.93466803,86.04,85.98,5.20146111]
[1772139565555,4.93466803,86.034,85.98,5.20146111]
[1772139566150,10.4608,86.033,85.98,5.20146111]
[1772139566454,4.93466803,86.033,85.98,5.20146111]
[1772139567052,4.93466803,86.019,85.948,5.20146111]
[1772139567259,4.93466803,86.038,85.948,5.20146111]
[1772139567452,4.93466803,86.038,85.961,5.20146111]
[1772139567952,4.93466803,86.036,85.973,5.20146111]
[1772139568160,4.93466803,86.036,85.91,7.38956846]
[1772139568459,15.39536803,86.033,85.97,5.20146111]
[1772139568759,4.93466803,86.032,85.94,5.20146111]
[1772139569155,4.93466803,86.008,85.92,5.20146111]
[1772139569553,4.93466803,86.008,85.931,5.20146111]
[1772139569748,4.93466803,86.008,85.948,15.67246111]
[1772139570055,4.93466803,86.008,85.949,5.20146111]
[1772139570258,10.4614,86.028,85.967,5.20146111]
[1772139570450,4.93466803,86.027,85.967,5.20146111]
[1772139570858,10.4628,86.016,85.967,5.20146111]
[1772139571256,4.93466803,86.027,85.967,5.20146111]
[1772139571559,10.4617,86.026,85.967,5.20146111]
[1772139572263,10.4617,86.026,85.968,10.4686]
[1772139572561,15.39656803,86.024,85.967,5.20146111]
[1772139572760,4.93466803,86.023,85.967,5.20146111]
[1772139573259,10.4623,86.021,85.968,10.4686]
[1772139573459,10.4623,86.021,85.967,5.20146111]
[1772139574662,15.39736803,86.017,85.958,10.4698]
[1772139574862,4.93466803,86.016,85.954,5.20146111]
[1772139575063,4.93466803,86.039,85.954,5.20146111]
[1772139575258,4.93466803,86.012,85.954,5.20146111]
[1772139575955,10.4636,86.01,85.954,5.20146111]
[1772139576161,4.93466803,86.012,85.931,4.605083]
[1772139576556,10.463,86.015,85.956,4.605083]
[1772139576762,4.57546672,86.014,85.956,4.605083]
[1772139578062,10.4633,86.012,85.958,4.605083]
[1772139578564,4.57546672,86.012,85.94,4.605083]
[1772139579263,4.57546672,86.039,85.958,4.605083]
[1772139579962,4.71883189,86.03,85.958,4.605083]
[1772139580566,4.71883189,86.023,85.969,4.81538337]
[1772139581063,4.71883189,86.039,85.969,4.81538337]
[1772139581254,10.4621,86.022,85.969,4.81538337]
[1772139581461,4.71883189,86.039,85.969,4.81538337]
[1772139581963,10.4622,86.022,85.969,4.81538337]
[1772139582160,4.71883189,86.021,85.969,4.81538337]
[1772139582361,4.71883189,86.021,85.931,4.81538337]
[1772139582563,4.71883189,86.009,85.932,4.81538337]
[1772139582756,12.13546145,86.0,85.932,4.81538337]
[1772139583064,4.71883189,85.999,85.932,4.81538337]
[1772139583556,20.9192,86.043,85.941,4.81538337]
[1772139583557,4.71883189,86.017,85.941,4.81538337]
[1772139584263,4.71883189,86.015,85.954,4.81538337]
[1772139584966,10.4633,86.013,85.955,15.28558337]
[1772139585165,4.71883189,86.012,85.955,4.81538337]
[1772139585569,15.18213189,86.012,85.955,15.28548337]
[1772139586062,4.71883189,86.012,85.959,4.81538337]
[1772139586363,4.71883189,86.029,85.959,4.81538337]
[1772139587366,4.71883189,86.029,85.974,10.4678]
[1772139587568,4.71883189,86.029,85.975,4.81538337]
[1772139588261,4.71883189,86.029,85.94,7.41662956]
[1772139588262,4.71883189,86.046,85.98,4.81538337]
[1772139588767,4.71883189,86.069,86.002,4.81538337]
[1772139589166,7.41662956,86.07,86.002,4.81538337]
[1772139589167,4.71883189,86.06,86.002,4.81538337]
[1772139589770,4.71883189,86.06,86.004,4.81538337]
[1772139590375,4.71883189,86.06,86.006,10.4639]
[1772139590566,4.71883189,86.06,85.981,4.81538337]
[1772139590970,4.71883189,86.057,85.996,4.81538337]
[1772139591271,4.71883189,86.073,85.996,4.81538337]
[1772139591466,4.71883189,86.073,86.007,4.81538337]
[1772139592873,4.71883189,86.069,85.971,4.81538337]
[1772139593173,4.71883189,86.054,85.994,4.81538337]
[1772139593563,10.4594,86.044,85.994,4.81538337]
[1772139594075,4.71883189,86.043,85.976,4.81538337]
[1772139594376,4.71883189,86.039,85.976,4.81538337]
[1772139594675,10.4624,86.02,85.957,4.81538337]
[1772139595167,15.18123189,86.02,85.957,4.81538337]
[1772139595373,7.41662956,86.03,85.939,4.81538337]
[1772139595674,4.71883189,86.029,85.939,4.81538337]
[1772139595874,4.71883189,86.029,85.93,7.41662956]
[1772139595875,10.4623,86.02,85.965,10.4689]
[1772139596076,4.71883189,86.029,85.962,4.81538337]
[1772139596376,4.71883189,86.029,85.973,4.81538337]
[1772139596875,4.71883189,86.029,85.98,10.4671]
[1772139597076,4.71883189,86.029,85.973,4.81538337]
[1772139597278,4.71883189,86.049,85.992,4.81538337]
[1772139597979,10.459,86.048,85.992,4.81538337]
[1772139598182,4.71883189,86.047,85.974,4.81538337]
[1772139598683,7.41662956,86.05,85.968,4.81538337]
[1772139598684,4.71883189,86.048,85.968,4.81538337]
[1772139598974,4.71883189,86.048,85.952,4.81538337]
[1772139599181,4.71883189,86.024,85.952,4.81538337]
[1772139600377,10.4632,86.014,85.954,10.4703]
[1772139600581,4.71883189,86.009,85.932,4.81538337]
[1772139600783,4.71883189,86.009,85.914,4.81538337]
[1772139600976,4.71883189,85.989,85.914,4.81538337]
[1772139601682,4.71883189,85.989,85.915,4.81538337]
[1772139602083,10.4662,85.988,85.929,4.81538337]
[1772139602285,4.71883189,85.989,85.929,4.81538337]
[1772139602580,10.4662,85.988,85.931,4.81538337]
[1772139602783,4.71883189,85.989,85.866,20.9622]
[1772139602784,4.71883189,85.989,85.91,4.81538337]
[1772139603583,4.71883189,86.009,85.91,4.81538337]
[1772139603778,4.71883189,86.009,85.921,4.81538337]
[1772139604289,4.71883189,86.027,85.945,4.81538337]
[1772139604786,4.71883189,86.015,85.946,4.81538337]
[1772139605882,4.71883189,86.015,85.948,4.81538337]
[1772139606082,162.6103,86.093,85.905,162.9652]
[1772139606083,4.71883189,86.033,85.961,4.81538337]
[1772139606784,4.71883189,86.033,85.921,4.81538337]
[1772139606982,4.71883189,86.029,85.931,4.81538337]
[1772139607285,10.4594,86.044,85.973,4.81538337]
[1772139607586,15.17823189,86.044,85.973,4.81538337]
[1772139607786,4.71883189,86.043,85.973,4.81538337]
[1772139607982,4.71883189,86.039,85.973,4.81538337]
[1772139608785,10.4628,86.017,85.973,4.81538337]
[1772139608990,7.41662956,86.05,85.93,7.41662956]
[1772139608991,4.71883189,86.023,85.952,4.81538337]
[1772139609592,4.71883189,86.023,85.965,4.81538337]
[1772139610090,4.71883189,86.023,85.967,4.28290127]
[1772139610489,4.71883189,86.023,85.969,4.28290127]
[1772139612291,4.36256939,86.039,85.971,4.28290127]
[1772139613493,4.36256939,86.039,85.973,4.28290127]
[1772139613789,4.36256939,86.056,85.991,4.28290127]
[1772139613990,4.36256939,86.056,85.996,4.28290127]
[1772139614692,4.36256939,86.056,86.0,10.4647]
[1772139614891,4.36256939,86.056,86.001,4.28290127]
[1772139616090,162.5288,86.136,86.006,4.28290127]
[1772139616091,4.36256939,86.073,86.006,4.28290127]
[1772139616694,4.36256939,86.091,86.026,4.28290127]
[1772139616891,7.41662956,86.1,86.026,4.28290127]
[1772139617094,11.77919895,86.1,86.026,4.28290127]
[1772139617294,4.36256939,86.099,86.026,4.28290127]
[1772139617895,4.36256939,86.098,86.029,4.28290127]
[1772139619093,10.453,86.097,86.032,4.28290127]
[1772139619295,4.36256939,86.117,86.032,4.28290127]
[1772139619499,4.36256939,86.114,86.051,4.28290127]
[1772139620908,4.36256939,86.114,86.052,10.4583]
[1772139621503,4.36256939,86.112,86.052,10.4583]
[1772139622902,10.4514,86.11,86.052,10.4583]
[1772139623296,4.36256939,86.112,86.053,4.28290127]
[1772139623502,4.36256939,86.112,86.056,4.28290127]
[1772139624903,4.36256939,86.112,86.059,10.4575]
[1772139626207,14.81156939,86.13,86.063,4.28290127]
[1772139627206,4.36256939,86.127,86.066,4.28290127]
[1772139627407,4.36256939,86.099,86.034,4.28290127]
[1772139627706,4.36256939,86.099,86.017,4.28290127]
[1772139628902,4.36256939,86.087,86.034,10.4605]
[1772139629108,4.36256939,86.087,86.035,4.28290127]
[1772139629606,7.41662956,86.1,86.035,4.28290127]
[1772139630907,17.86932956,86.1,86.041,10.4597]
[1772139631206,22.23189895,86.1,86.041,10.4597]
[1772139632308,10.4536,86.092,86.035,4.28290127]
[1772139632905,4.36256939,86.087,86.035,4.28290127]
[1772139633311,4.36256939,86.087,85.991,4.28290127]
[1772139634006,4.36256939,86.084,86.027,10.4614]
[1772139634711,4.36256939,86.08,86.021,4.28290127]
[1772139635913,10.4555,86.076,86.023,10.4619]
[1772139637010,10.4555,86.076,86.023,14.48692273]
[1772139638714,10.4555,86.076,86.026,10.4615]
[1772139638908,4.36256939,86.08,86.027,4.02502273]
[1772139639912,4.36256939,86.08,86.03,4.30528888]
[1772139640415,4.36256939,86.08,86.01,7.40503215]
[1772139640416,10.4535,86.093,86.04,4.30528888]
[1772139640713,4.32245586,86.093,86.04,4.30528888]
[1772139642414,4.32245586,86.091,86.04,4.30528888]
[1772139642712,4.32245586,86.091,86.026,4.30528888]
[1772139643013,10.4555,86.076,86.026,4.30528888]
[1772139643215,4.32245586,86.091,86.026,4.30528888]
[1772139643715,4.32245586,86.091,86.01,7.40503215]
[1772139643716,4.32245586,86.119,86.036,4.30528888]
[1772139644915,10.4526,86.101,86.05,10.4586]
[1772139645214,10.4526,86.101,86.05,14.76388888]
[1772139645414,10.4528,86.099,86.051,4.30528888]
[1772139645615,4.32245586,86.098,86.051,4.30528888]
[1772139646216,14.77565586,86.096,86.051,4.30528888]
[1772139646416,4.32245586,86.095,86.034,14.76578888]
[1772139647617,4.32245586,86.079,86.019,4.30528888]
[1772139648820,4.32245586,86.077,86.019,14.76768888]
[1772139649919,4.32245586,86.077,86.02,4.30528888]
[1772139652020,10.4555,86.076,86.02,4.30528888]
[1772139652922,14.77795586,86.076,86.02,4.30528888]